fUSD/lending_fUSD_20260530
["ID","MTS","AMOUNT","RATE_DAILY","PERIOD"]
[423423700,1780104670000,-150.0,0.00013896,2]
[423423704,1780104670000,-150.0,0.00013928,2]
[423423699,1780104670000,-150.0,0.00013883,2]
[423423702,1780104670000,-150.0,0.00013916,2]
[423423697,1780104670000,-150.0,0.00013862,2]
[423423705,1780104670000,-48235.64303922,0.00013932,2]
[423423701,1780104670000,-150.0,0.00013904,2]
[423423703,1780104670000,-150.0,0.00013925,2]
[423423706,1780104670000,-150.0,0.00013946,2]
[423423708,1780104670000,-150.0,0.00013966,2]
[423423707,1780104670000,-150.0,0.00013956,2]
[423423710,1780104670000,-474.87,0.00013985,2]
[423423711,1780104670000,-150.0,0.00013987,2]
[423423712,1780104670000,-150.0,0.00013987,2]
[423423717,1780104670000,-150.0,0.00014008,2]
[423423718,1780104670000,-1613.0,0.00014012,2]
[423423713,1780104670000,-150.0,0.00013987,2]
[423423714,1780104670000,-22692.85445813,0.0001399,2]
[423423715,1780104670000,-250.0,0.00014,2]
[423423716,1780104670000,-969.69792251,0.00014,2]
[423423719,1780104670000,-150.0,0.00014017,2]
[423423721,1780104670000,-150.0,0.00014029,2]
[423423720,1780104670000,-363.27822254,0.00014017,2]
[423423722,1780104670000,-150.0,0.00014033,2]
[423423666,1780104670000,-500.0,0.00013699,10]
[423423723,1780104670000,-150.0,0.0001405,2]
[423423696,1780104670000,-150.0,0.00013862,2]
[423423695,1780104670000,-150.0,0.00013844,2]
[423423724,1780104670000,-150.0,0.0001405,2]
[423423692,1780104670000,-166.66,0.00013836,2]
[423423694,1780104670000,-150.0,0.00013842,2]
[423423667,1780104670000,-500.0,0.00013699,10]
[423423668,1780104670000,-500.0,0.00013699,10]
[423423670,1780104670000,-187.71242717,0.00013699,10]
[423423669,1780104670000,-500.0,0.00013699,10]
[423423672,1780104670000,-156.2014279,0.00013699,2]
[423423671,1780104670000,-154.0,0.00013699,2]
[423423674,1780104670000,-150.0,0.000137,2]
[423423673,1780104670000,-150.0,0.000137,2]
[423423675,1780104670000,-244.34088694,0.000137,2]
[423423676,1780104670000,-150.0,0.00013702,2]
[423423678,1780104670000,-150.0,0.00013717,2]
[423423679,1780104670000,-164.49,0.00013728,2]
[423423680,1780104670000,-150.0,0.00013737,2]
[423423665,1780104670000,-9999.99,0.00013699,2]
[423423681,1780104670000,-150.0,0.00013752,2]
[423423677,1780104670000,-1280.0,0.00013715,2]
[423423693,1780104670000,-150.0,0.0001384,2]
[423423687,1780104670000,-150.0,0.00013787,2]
[423423690,1780104670000,-150.0,0.000138,2]
[423423688,1780104670000,-1633.3090011,0.00013792,2]
[423423691,1780104670000,-150.0,0.00013821,2]
[423423689,1780104670000,-156.01,0.00013793,2]
[423423685,1780104670000,-150.0,0.00013773,2]
[423423684,1780104670000,-150.0,0.00013769,2]
[423423683,1780104670000,-150.0,0.0001376,2]
[423423682,1780104670000,-150.0,0.00013758,2]
[423423686,1780104670000,-150.0,0.00013779,2]
[423423766,1780104671000,-150.0,0.00014369,2]
[423423763,1780104671000,-1272.0,0.00014348,2]
[423423764,1780104671000,-1225.0,0.00014348,2]
[423423755,1780104671000,-150.0,0.00014281,2]
[423423762,1780104671000,-500.0,0.00014347,2]
[423423761,1780104671000,-150.0,0.00014344,2]
[423423758,1780104671000,-150.0,0.0001432,2]
[423423756,1780104671000,-150.0,0.00014299,2]
[423423759,1780104671000,-150.0,0.00014331,2]
[423423757,1780104671000,-150.0,0.00014305,2]
[423423760,1780104671000,-150.0,0.00014341,2]
[423423765,1780104671000,-150.0,0.00014362,2]
[423423770,1780104671000,-10466.80116821,0.0001439,2]
[423423768,1780104671000,-166.66,0.00014384,2]
[423423769,1780104671000,-150.0,0.00014387,2]
[423423772,1780104671000,-927.0,0.000144,2]
[423423771,1780104671000,-765.87323892,0.000144,2]
[423423773,1780104671000,-771.0,0.000144,2]
[423423775,1780104671000,-150.0,0.00014415,2]
[423423774,1780104671000,-150.0,0.00014404,2]
[423423776,1780104671000,-48235.64303922,0.00014416,2]
[423423778,1780104671000,-150.0,0.00014424,2]
[423423777,1780104671000,-150.0,0.00014424,2]
[423423754,1780104671000,-150.0,0.00014279,2]
[423423780,1780104671000,-150.0,0.00014441,2]
[423423767,1780104671000,-150.0,0.00014383,2]
[423423749,1780104671000,-150.0,0.00014237,2]
[423423740,1780104671000,-3550.0,0.00014171,2]
[423423750,1780104671000,-150.0,0.00014237,2]
[423423779,1780104671000,-150.0,0.00014424,2]
[423423726,1780104671000,-150.0,0.00014059,2]
[423423727,1780104671000,-150.0,0.0001407,2]
[423423729,1780104671000,-150.0,0.00014091,2]
[423423725,1780104671000,-150.0,0.0001405,2]
[423423728,1780104671000,-150.0,0.00014087,2]
[423423730,1780104671000,-150.0,0.00014105,2]
[423423731,1780104671000,-166.66,0.0001411,2]
[423423732,1780104671000,-150.0,0.00014112,2]
[423423733,1780104671000,-156.01,0.0001413,2]
[423423734,1780104671000,-150.0,0.0001413,2]
[423423741,1780104671000,-928.0,0.00014171,2]
[423423751,1780104671000,-166.66,0.00014247,2]
[423423738,1780104671000,-1633.3090011,0.00014161,2]
[423423735,1780104671000,-150.0,0.00014133,2]
[423423742,1780104671000,-150.0,0.00014175,2]
[423423736,1780104671000,-150.0,0.00014143,2]
[423423739,1780104671000,-150.0,0.00014169,2]
[423423743,1780104671000,-18638.13469689,0.00014186,2]
[423423744,1780104671000,-150.0,0.00014193,2]
[423423745,1780104671000,-150.0,0.00014195,2]
[423423746,1780104671000,-150.0,0.00014201,2]
[423423748,1780104671000,-150.0,0.00014237,2]
[423423747,1780104671000,-150.0,0.00014216,2]
[423423753,1780104671000,-150.0,0.00014273,2]
[423423752,1780104671000,-150.0,0.00014258,2]
[423423737,1780104671000,-150.0,0.00014154,2]
[423423782,1780104671000,-150.0,0.00014457,2]
[423423830,1780104671000,-633.85435388,0.000148,2]
[423423781,1780104671000,-150.0,0.00014445,2]
[423423811,1780104671000,-3322.9950632,0.00014687,2]
[423423815,1780104671000,-150.0,0.00014705,2]
[423423817,1780104671000,-150.0,0.00014716,2]
[423423816,1780104671000,-150.0,0.00014714,2]
[423423818,1780104671000,-150.0,0.00014722,2]
[423423819,1780104671000,-150.0,0.00014737,2]
[423423820,1780104671000,-150.0,0.00014757,2]
[423423822,1780104671000,-150.0,0.00014772,2]
[423423821,1780104671000,-152.0,0.0001476,3]
[423423825,1780104671000,-25000.0,0.00014782,3]
[423423824,1780104671000,-150.0,0.00014778,2]
[423423823,1780104671000,-25000.0,0.00014774,3]
[423423812,1780104671000,-194.6686345,0.00014687,2]
[423423827,1780104671000,-150.0,0.00014799,2]
[423423828,1780104671000,-150.0,0.00014799,2]
[423423840,1780104671000,-150.0,0.00014893,2]
[423423829,1780104671000,-150.0,0.00014799,2]
[423423831,1780104671000,-25000.0,0.000148,3]
[423423832,1780104671000,-150.0,0.0001481,2]
[423423833,1780104671000,-150.0,0.0001482,2]
[423423835,1780104671000,-150.0,0.00014844,2]
[423423836,1780104671000,-633.85435386,0.0001485,2]
[423423834,1780104671000,-150.0,0.00014841,2]
[423423838,1780104671000,-150.0,0.00014861,2]
[423423837,1780104671000,-150.0,0.0001485,2]
[423423839,1780104671000,-150.0,0.00014882,2]
[423423826,1780104671000,-25000.0,0.00014791,3]
[423423814,1780104671000,-150.0,0.00014701,2]
[423423783,1780104671000,-150.0,0.00014466,2]
[423423810,1780104671000,-1452.2607231,0.00014687,2]
[423423813,1780104671000,-150.0,0.00014695,2]
[423423784,1780104671000,-150.0,0.0001447,2]
[423423785,1780104671000,-150.0,0.0001447,2]
[423423786,1780104671000,-150.0,0.00014487,2]
[423423787,1780104671000,-150.0,0.00014487,2]
[423423791,1780104671000,-150.0,0.00014528,2]
[423423790,1780104671000,-150.0,0.00014518,2]
[423423789,1780104671000,-150.0,0.00014508,2]
[423423792,1780104671000,-1633.3090011,0.00014531,2]
[423423793,1780104671000,-150.0,0.00014546,2]
[423423794,1780104671000,-150.0,0.00014549,2]
[423423795,1780104671000,-320.0,0.00014556,2]
[423423796,1780104671000,-150.0,0.00014558,2]
[423423788,1780104671000,-150.0,0.00014487,2]
[423423798,1780104671000,-150.0,0.00014578,2]
[423423797,1780104671000,-150.0,0.0001457,2]
[423423807,1780104671000,-500.0,0.00014667,11]
[423423809,1780104671000,-150.0,0.00014687,2]
[423423806,1780104671000,-150.0,0.00014653,2]
[423423804,1780104671000,-150.0,0.00014632,2]
[423423808,1780104671000,-150.0,0.00014674,2]
[423423803,1780104671000,-150.0,0.00014629,2]
[423423800,1780104671000,-150.0,0.00014612,2]
[423423802,1780104671000,-150.0,0.00014612,2]
[423423799,1780104671000,-150.0,0.00014591,2]
[423423801,1780104671000,-150.0,0.00014612,2]
[423423805,1780104671000,-150.0,0.00014634,2]
[423423859,1780104672000,-575.96,0.00014985,2]
[423423854,1780104672000,-2000.0,0.00014985,2]
[423423857,1780104672000,-2000.0,0.00014985,2]
[423423855,1780104672000,-2000.0,0.00014985,2]
[423423858,1780104672000,-1316.02,0.00014985,2]
[423423856,1780104672000,-1738.57,0.00014985,2]
[423423853,1780104672000,-2000.0,0.00014985,2]
[423423850,1780104672000,-150.0,0.00014924,2]
[423423848,1780104672000,-150.0,0.00014903,2]
[423423851,1780104672000,-150.0,0.00014945,2]
[423423849,1780104672000,-150.0,0.00014915,2]
[423423847,1780104672000,-8221.59774526,0.000149,2]
[423423844,1780104672000,-18638.13469689,0.000149,2]
[423423845,1780104672000,-1633.3090011,0.000149,2]
[423423843,1780104672000,-48235.64303922,0.000149,2]
[423423842,1780104672000,-633.85435386,0.000149,2]
[423423841,1780104672000,-150.0,0.00014898,2]
[423423860,1780104672000,-150.0,0.00014986,2]
[423423852,1780104672000,-150.0,0.00014965,2]
[423423861,1780104672000,-150.0,0.00014986,2]
[423423867,1780104672000,-227.34209026,0.00014986,2]
[423423862,1780104672000,-150.00000001,0.00014986,2]
[423423863,1780104672000,-180.38729844,0.00014986,2]
[423423877,1780104672000,-500.0,0.00014999,2]
[423423880,1780104672000,-300.0,0.00014999,2]
[423423882,1780104672000,-7611753.4331058,0.00015,2]
[423423881,1780104672000,-203.97742115,0.00015,2]
[423423875,1780104672000,-500.0,0.00014999,2]
[423423876,1780104672000,-500.0,0.00014999,2]
[423423874,1780104672000,-500.0,0.00014999,2]
[423423879,1780104672000,-452.6,0.00014999,2]
[423423873,1780104672000,-500.0,0.00014999,2]
[423423872,1780104672000,-3527.04882417,0.00014999,2]
[423423864,1780104672000,-229.3347948,0.00014986,2]
[423423865,1780104672000,-241.72539906,0.00014986,2]
[423423866,1780104672000,-210.22869687,0.00014986,2]
[423423878,1780104672000,-500.0,0.00014999,2]
[423423870,1780104672000,-151.0,0.00014997,2]
[423423871,1780104672000,-152.0,0.00014999,4]
[423423868,1780104672000,-226.4297305,0.00014986,2]
[423423869,1780104672000,-269.36912467,0.00014986,2]
[423423883,1780104673000,-375.82493833,0.00015,2]
[423423885,1780104674000,-2562.22640115,0.00015,2]
[423423884,1780104674000,-151.0,0.00014856,2]
[423423886,1780104674000,-550.0,0.00015,2]
[423423889,1780104674000,-1473.30730687,0.00015,2]
[423423888,1780104674000,-466.58784794,0.00015,2]
[423423887,1780104674000,-1280.34899444,0.00015,2]
[423423890,1780104677000,-160.0,8.877e-05,2]
[423423891,1780104677000,-937.875,0.00011171,2]
[423423893,1780104728000,748.55,0.00027877,120]
[423423894,1780104737000,-164.62,7.725e-05,2]
[423423895,1780104744000,-164.62,7.841e-05,2]
[423423896,1780104749000,151.1135559,8.238e-05,7]
[423423897,1780104754000,500.0,0.00027877,120]
[423423898,1780104799000,-164.62,7.957e-05,2]
[423423899,1780104806000,-164.62,8.073e-05,2]
[423423900,1780104864000,-500.0,8.138e-05,2]
[423423904,1780104873000,-20.76,8.422e-05,2]
[423423901,1780104873000,-150.0,7.718e-05,2]
[423423902,1780104873000,-164.62,8.189e-05,2]
[423423903,1780104873000,-164.62,8.305e-05,2]
[423423906,1780104911000,162.4,0.00028,120]
[423423907,1780104911000,162.4,0.000149,120]
[423423908,1780104913000,-578.084,8.264e-05,2]
[423423910,1780104948000,701.0,0.00028,120]
[423423909,1780104948000,819.84562786,0.00027877,120]
[423423911,1780104953000,-143.86,8.422e-05,2]
[423423912,1780104992000,-502.48137342,8.497e-05,2]
[423423913,1780104996000,2285.94,0.00028082,120]
[423423914,1780105032000,-164.62,8.538e-05,2]
[423423923,1780105214000,195.29,0.00027493,120]
[423423924,1780105215000,195.29,0.00028068,120]
[423423926,1780105287000,-150.0,8.569e-05,2]
[423423927,1780105316000,-1200.0,8.572e-05,2]
[423423928,1780105367000,166.02908896,0.00028,120]
[423423929,1780105368000,166.02908896,0.00028,120]
[423423930,1780105371000,-500.0,8.57e-05,2]
[423423931,1780105381000,-500.0,8.569e-05,2]
[423423932,1780105382000,501.56858515,0.00027877,120]
[423423933,1780105394000,332.05817792,0.00028,120]
[423423934,1780105432000,1162.20362272,0.00028,120]
[423423937,1780105437000,-9.00822282,8.601e-05,2]
[423423935,1780105437000,-300.0,8.572e-05,2]
[423423936,1780105437000,-190.99177718,8.574e-05,2]
[423423938,1780105443000,-500.0,8.601e-05,2]
[423423939,1780105486000,996.17453376,0.00028,120]
[423423940,1780105493000,166.02908896,0.00028,120]
[423423942,1780105495000,498.08726688,0.00028,120]
[423423941,1780105495000,498.08726688,0.00028,120]
[423423945,1780105497000,-468.12462694,8.568e-05,2]
[423423943,1780105497000,-300.0,8.567e-05,2]
[423423944,1780105497000,-500.0,8.568e-05,2]
[423423949,1780105504000,-236.24925388,8.568e-05,2]
[423423948,1780105504000,-500.0,8.568e-05,2]
[423423947,1780105504000,-500.0,8.568e-05,2]
[423423946,1780105504000,-31.87537306,8.568e-05,2]
[423423950,1780105549000,830.1454448,0.00028,120]
[423423951,1780105571000,664.11635584,0.00028,120]
[423423952,1780105575000,-609.0,8.567e-05,2]
[423423954,1780105575000,-1129.21263756,8.601e-05,2]
[423423953,1780105575000,-150.0,8.567e-05,2]
[423423958,1780105587000,-500.0,8.567e-05,2]
[423423959,1780105587000,-236.21263756,8.567e-05,2]
[423423957,1780105587000,-500.0,8.567e-05,2]
[423423956,1780105587000,-500.0,8.567e-05,2]
[423423955,1780105587000,-152.0,8.504e-05,2]
[423423961,1780105606000,-345.21263756,8.567e-05,2]
[423423960,1780105606000,-263.78736244,8.567e-05,2]
[423423965,1780105683000,-154.78736244,8.566e-05,2]
[423423966,1780105693000,-300.0,8.601e-05,2]
[423423968,1780105718000,-300.0,8.601e-05,2]
[423423975,1780105739000,-115.24,8.566e-05,2]
[423423972,1780105739000,-500.0,8.566e-05,2]
[423423970,1780105739000,-500.0,8.566e-05,2]
[423423973,1780105739000,-500.0,8.566e-05,2]
[423423971,1780105739000,-500.0,8.566e-05,2]
[423423974,1780105739000,-500.0,8.566e-05,2]
[423423976,1780105756000,1000.0,0.00028081,120]
[423423979,1780105813000,152.0,8.238e-05,7]
[423423980,1780105814000,152.0,8.244e-05,7]
[423424019,1780105832000,-500.0,8.565e-05,2]
[423424018,1780105832000,-1200.0,8.564e-05,2]
[423424017,1780105832000,-152.0,8.322e-05,2]
[423424052,1780105833000,-436.89396713,8.803e-05,2]
[423424053,1780105833000,-693.6130166,8.803e-05,2]
[423424051,1780105833000,-1254.41808677,8.803e-05,2]
[423424050,1780105833000,-14921.233622,8.803e-05,2]
[423424047,1780105833000,-23806.45113703,8.698e-05,2]
[423424048,1780105833000,-20581.6906204,8.698e-05,2]
[423424054,1780105833000,-5109.78106113,8.803e-05,2]
[423424046,1780105833000,-2680.1271,8.601e-05,2]
[423424049,1780105833000,-2625.70214257,8.698e-05,2]
[423424055,1780105833000,-1631.38368165,8.803e-05,2]
[423424058,1780105833000,-2661.2539362,8.839e-05,2]
[423424064,1780105833000,-155.43,9.353e-05,2]
[423424057,1780105833000,-2571.5318,8.803e-05,2]
[423424041,1780105833000,-500.0,8.6e-05,2]
[423424061,1780105833000,-155.43,9.197e-05,2]
[423424059,1780105833000,-155.43,8.885e-05,2]
[423424063,1780105833000,-208.92588318,9.269e-05,2]
[423424062,1780105833000,-232.97112715,9.233e-05,2]
[423424066,1780105833000,-1680.0,9.42e-05,2]
[423424065,1780105833000,-160.04,9.369e-05,2]
[423424060,1780105833000,-155.43,9.041e-05,2]
[423424056,1780105833000,-9187.11046472,8.803e-05,2]
[423424042,1780105833000,-500.0,8.6e-05,2]
[423424040,1780105833000,-146654.64311191,8.598e-05,2]
[423424037,1780105833000,-500.0,8.565e-05,2]
[423424020,1780105833000,-500.0,8.565e-05,2]
[423424021,1780105833000,-273.89457542,8.565e-05,2]
[423424032,1780105833000,-232.32173627,8.565e-05,2]
[423424024,1780105833000,-500.0,8.565e-05,2]
[423424023,1780105833000,-500.0,8.565e-05,2]
[423424025,1780105833000,-500.0,8.565e-05,2]
[423424022,1780105833000,-226.10542458,8.565e-05,2]
[423424026,1780105833000,-397.94289863,8.565e-05,2]
[423424028,1780105833000,-187.32173627,8.565e-05,2]
[423424029,1780105833000,-312.67826373,8.565e-05,2]
[423424027,1780105833000,-102.05710137,8.565e-05,2]
[423424031,1780105833000,-500.0,8.565e-05,2]
[423424030,1780105833000,-500.0,8.565e-05,2]
[423424033,1780105833000,-267.67826373,8.565e-05,2]
[423424034,1780105833000,-479.57671423,8.565e-05,2]
[423424043,1780105833000,-500.0,8.6e-05,2]
[423424045,1780105833000,-2500.0,8.601e-05,2]
[423424044,1780105833000,-330.2568241,8.6e-05,2]
[423424035,1780105833000,-102.74502203,8.565e-05,2]
[423424036,1780105833000,-397.25497797,8.565e-05,2]
[423424038,1780105833000,-500.0,8.565e-05,2]
[423424039,1780105833000,-71635.54218809,8.598e-05,2]
[423424068,1780105833000,-155.43,9.509e-05,2]
[423424067,1780105833000,-2964.11,9.432e-05,2]
[423424071,1780105833000,-767.37,9.671e-05,2]
[423424098,1780105833000,-250.0,0.00011317,2]
[423424099,1780105833000,-4154.99007666,0.00011359,2]
[423424100,1780105833000,-3292.0,0.00011399,2]
[423424097,1780105833000,-200.0,0.00011317,2]
[423424102,1780105833000,-685.0,0.00011838,2]
[423424101,1780105833000,-54847.65961389,0.00011457,2]
[423424103,1780105833000,-2489.0,0.00011838,2]
[423424104,1780105833000,-1356.0,0.00011838,2]
[423424105,1780105833000,-1309.618,0.00011838,2]
[423424106,1780105833000,-150.0,0.00011838,2]
[423424107,1780105833000,-277.0,0.00011838,2]
[423424108,1780105833000,-150.0,0.00011838,2]
[423424111,1780105833000,-6066.0,0.00011838,2]
[423424113,1780105833000,-173.96,0.00012021,2]
[423424109,1780105833000,-418.0,0.00011838,2]
[423424110,1780105833000,-150.884,0.00011838,2]
[423424112,1780105833000,-191.41134867,0.00011838,2]
[423424115,1780105833000,-22515.75881767,0.00012146,2]
[423424116,1780105833000,-773.1309012,0.00012146,2]
[423424117,1780105833000,-714.79083514,0.00012146,2]
[423424069,1780105833000,-173.96,9.617e-05,2]
[423424096,1780105833000,-9999.99,0.00011281,2]
[423424086,1780105833000,-160.04,0.00010915,2]
[423424114,1780105833000,-5000.0,0.00012046,2]
[423424094,1780105833000,-54847.65961389,0.00011099,2]
[423424082,1780105833000,-4154.99007672,0.000109,2]
[423424072,1780105833000,-1337.01,9.699e-05,2]
[423424070,1780105833000,-155.43,9.665e-05,2]
[423424080,1780105833000,-173.96,0.00010819,2]
[423424076,1780105833000,-160.04,0.00010142,2]
[423424079,1780105833000,-601.62,0.000107,2]
[423424078,1780105833000,-2351.0,0.00010362,2]
[423424074,1780105833000,-155.43,9.821e-05,2]
[423424075,1780105833000,-1600.0,9.892e-05,2]
[423424077,1780105833000,-1000.0,0.00010326,2]
[423424081,1780105833000,-500.0,0.00010834,2]
[423424073,1780105833000,-1128.82,9.814e-05,2]
[423424089,1780105833000,-150.0,0.00011021,2]
[423424090,1780105833000,-2000.0,0.00011042,2]
[423424088,1780105833000,-168.01,0.00010965,2]
[423424092,1780105833000,-54847.65961389,0.00011099,2]
[423424083,1780105833000,-4154.99007666,0.000109,2]
[423424087,1780105833000,-150.0,0.00010959,2]
[423424091,1780105833000,-54847.65961395,0.00011099,2]
[423424085,1780105833000,-504.20181223,0.000109,2]
[423424095,1780105833000,-1600.0,0.00011128,2]
[423424093,1780105833000,-54847.65961389,0.00011099,2]
[423424084,1780105833000,-4154.99007666,0.000109,2]
[423424142,1780105838000,-150.0,0.00013488,2]
[423424138,1780105838000,-150.0,0.00013488,2]
[423424148,1780105838000,-150.0,0.00013533,2]
[423424141,1780105838000,-150.0,0.00013488,2]
[423424149,1780105838000,-211.71548338,0.00013533,2]
[423424158,1780105838000,-211.71548338,0.00013594,2]
[423424157,1780105838000,-150.0,0.00013581,2]
[423424159,1780105838000,-150.0,0.00013595,2]
[423424154,1780105838000,-211.71548338,0.00013563,2]
[423424152,1780105838000,-150.0,0.00013559,2]
[423424150,1780105838000,-150.0,0.00013535,2]
[423424153,1780105838000,-150.0,0.00013561,2]
[423424156,1780105838000,-211.71548338,0.00013578,2]
[423424161,1780105838000,-934.80383794,0.00013598,2]
[423424160,1780105838000,-150.0,0.00013597,2]
[423424139,1780105838000,-150.0,0.00013488,2]
[423424162,1780105838000,-1600.0,0.00013601,2]
[423424151,1780105838000,-211.71548338,0.00013548,2]
[423424140,1780105838000,-150.0,0.00013488,2]
[423424128,1780105838000,-4609.0,0.00012539,2]
[423424146,1780105838000,-54847.65961389,0.00013523,2]
[423424171,1780105838000,-211.71548338,0.00013654,2]
[423424124,1780105838000,-30843.97905988,0.00012146,2]
[423424133,1780105838000,-173.96,0.00013224,2]
[423424125,1780105838000,-4154.99007666,0.00012244,2]
[423424127,1780105838000,-2000.0,0.00012422,2]
[423424134,1780105838000,-150.0,0.00013488,2]
[423424126,1780105838000,-1600.0,0.00012364,2]
[423424130,1780105838000,-177.81,0.00013039,11]
[423424129,1780105838000,-54847.65961389,0.00012834,2]
[423424131,1780105838000,-177.8,0.00013039,28]
[423424132,1780105838000,-4154.99007666,0.00013129,2]
[423424135,1780105838000,-150.0,0.00013488,2]
[423424143,1780105838000,-211.71548338,0.00013488,2]
[423424144,1780105838000,-211.71548338,0.00013503,2]
[423424136,1780105838000,-150.0,0.00013488,2]
[423424147,1780105838000,-150.0,0.00013524,2]
[423424145,1780105838000,-211.71548338,0.00013518,2]
[423424137,1780105838000,-150.0,0.00013488,2]
[423424172,1780105838000,-150.0,0.00013669,2]
[423424155,1780105838000,-150.0,0.00013578,2]
[423424165,1780105838000,-211.71548338,0.00013624,2]
[423424196,1780105838000,-500.0,0.00013698,2]
[423424189,1780105838000,-500.0,0.00013698,2]
[423424199,1780105838000,-500.0,0.00013698,2]
[423424197,1780105838000,-500.0,0.00013698,2]
[423424190,1780105838000,-511.90120628,0.00013698,2]
[423424188,1780105838000,-500.0,0.00013698,2]
[423424198,1780105838000,-500.0,0.00013698,2]
[423424193,1780105838000,-500.0,0.00013698,2]
[423424195,1780105838000,-500.0,0.00013698,2]
[423424192,1780105838000,-588.77736788,0.00013698,2]
[423424194,1780105838000,-500.0,0.00013698,2]
[423424200,1780105838000,-943.27,0.00013698,2]
[423424203,1780105838000,-943.27,0.00013698,2]
[423424204,1780105838000,-736.64,0.00013698,2]
[423424201,1780105838000,-943.27,0.00013698,2]
[423424206,1780105838000,-500.0,0.00013698,2]
[423424205,1780105838000,-500.0,0.00013698,2]
[423424167,1780105838000,-150.0,0.0001363,2]
[423424191,1780105838000,-501.28672144,0.00013698,2]
[423424187,1780105838000,-500.0,0.00013698,2]
[423424202,1780105838000,-943.27,0.00013698,2]
[423424175,1780105838000,-158.27717948,0.00013671,7]
[423424163,1780105838000,-211.71548338,0.00013609,2]
[423424184,1780105838000,-500.0,0.00013698,2]
[423424169,1780105838000,-211.71548338,0.00013639,2]
[423424168,1780105838000,-150.0,0.00013634,2]
[423424166,1780105838000,-150.0,0.00013628,2]
[423424164,1780105838000,-150.0,0.00013624,2]
[423424174,1780105838000,-150.0,0.0001367,2]
[423424182,1780105838000,-500.0,0.00013698,2]
[423424183,1780105838000,-500.0,0.00013698,2]
[423424170,1780105838000,-150.0,0.00013654,2]
[423424180,1780105838000,-500.0,0.00013698,2]
[423424176,1780105838000,-150.0,0.00013675,2]
[423424177,1780105838000,-211.71548338,0.00013684,2]
[423424185,1780105838000,-500.0,0.00013698,2]
[423424186,1780105838000,-500.0,0.00013698,2]
[423424181,1780105838000,-500.0,0.00013698,2]
[423424179,1780105838000,-500.0,0.00013698,2]
[423424173,1780105838000,-211.71548338,0.00013669,2]
[423424178,1780105838000,-500.0,0.00013698,2]
[423424249,1780105839000,-151.0,0.00013699,2]
[423424247,1780105839000,-151.0,0.00013699,2]
[423424245,1780105839000,-151.0,0.00013699,2]
[423424248,1780105839000,-151.0,0.00013699,2]
[423424250,1780105839000,-151.0,0.00013699,2]
[423424243,1780105839000,-151.0,0.00013699,2]
[423424246,1780105839000,-151.0,0.00013699,2]
[423424242,1780105839000,-151.0,0.00013699,2]
[423424252,1780105839000,-151.0,0.00013699,2]
[423424264,1780105839000,-151.0,0.00013699,2]
[423424240,1780105839000,-151.0,0.00013699,2]
[423424251,1780105839000,-151.0,0.00013699,2]
[423424244,1780105839000,-151.0,0.00013699,2]
[423424263,1780105839000,-151.0,0.00013699,2]
[423424265,1780105839000,-151.0,0.00013699,2]
[423424253,1780105839000,-151.0,0.00013699,2]
[423424254,1780105839000,-151.0,0.00013699,2]
[423424256,1780105839000,-151.0,0.00013699,2]
[423424266,1780105839000,-151.0,0.00013699,2]
[423424262,1780105839000,-151.0,0.00013699,2]
[423424260,1780105839000,-151.0,0.00013699,2]